[Event "*** Titled Tuesday Blitz"]
[Site "Chess.com"]
[Date "2020.02.04"]
[Round "3"]
[White "WeAintSurePal"]
[Black "Irishchessman16"]
[Result "1-0"]
[WhiteElo "2426"]
[BlackElo "2230"]
[TimeControl "180+2"]
[EndTime "9:33:07 PST"]
[Termination "WeAintSurePal won by resignation"]

1. d4 {[%clk 0:03:01.9]} 1... Nf6 {[%clk 0:02:59]} 2. Nc3 {[%clk 0:03:01.8]}
2... d5 {[%clk 0:02:58]} 3. Bf4 {[%clk 0:02:53.9]} 3... e6 {[%clk 0:02:55.7]} 4.
e3 {[%clk 0:02:50.6]} 4... c5 {[%clk 0:02:54.3]} 5. Nf3 {[%clk 0:02:47.9]} 5...
c4 {[%clk 0:02:44.7]} 6. a3 {[%clk 0:02:46.6]} 6... Nc6 {[%clk 0:02:42.5]} 7.
Be2 {[%clk 0:02:37.5]} 7... Qa5 {[%clk 0:02:43.2]} 8. O-O {[%clk 0:02:36.8]}
8... b5 {[%clk 0:02:43.2]} 9. a4 {[%clk 0:02:34.1]} 9... b4 {[%clk 0:02:43.9]}
10. Nb5 {[%clk 0:02:32.2]} 10... Kd7 {[%clk 0:02:22.2]} 11. Ne5+ {[%clk
0:02:16.1]} 11... Nxe5 {[%clk 0:02:20]} 12. dxe5 {[%clk 0:02:18]} 12... a6
{[%clk 0:02:13.9]} 13. Nd4 {[%clk 0:02:12.4]} 13... Ne4 {[%clk 0:02:09.2]} 14.
f3 {[%clk 0:01:52.6]} 14... Nc5 {[%clk 0:02:09.7]} 15. e4 {[%clk 0:01:53.4]}
15... Bb7 {[%clk 0:02:09.5]} 16. exd5 {[%clk 0:01:53.2]} 16... exd5 {[%clk
0:02:10]} 17. Bxc4 {[%clk 0:01:48.8]} 17... Qc7 {[%clk 0:01:57.3]} 18. e6+
{[%clk 0:01:49.3]} 1-0

[Event "*** Titled Tuesday Blitz"]
[Site "Chess.com"]
[Date "2020.02.04"]
[Round "3"]
[White "FedaMaster"]
[Black "isla88"]
[Result "0-1"]
[WhiteElo "2592"]
[BlackElo "2325"]
[TimeControl "180+2"]
[EndTime "9:33:45 PST"]
[Termination "isla88 won by resignation"]

1. e4 {[%clk 0:03:01.9]} 1... c5 {[%clk 0:03:00.1]} 2. Nf3 {[%clk 0:02:55.8]}
2... Nc6 {[%clk 0:03:00.8]} 3. d4 {[%clk 0:02:54.6]} 3... cxd4 {[%clk
0:03:01.4]} 4. Nxd4 {[%clk 0:02:56.2]} 4... e5 {[%clk 0:03:02.5]} 5. Nb5 {[%clk
0:02:56.5]} 5... d6 {[%clk 0:03:03.3]} 6. c4 {[%clk 0:02:56.8]} 6... Be7 {[%clk
0:03:01]} 7. N1c3 {[%clk 0:02:56]} 7... a6 {[%clk 0:03:01.7]} 8. Na3 {[%clk
0:02:57.5]} 8... f5 {[%clk 0:03:02.6]} 9. exf5 {[%clk 0:02:58.8]} 9... Bxf5
{[%clk 0:03:02.8]} 10. Bd3 {[%clk 0:03:00.5]} 10... Be6 {[%clk 0:03:04]} 11. Nc2
{[%clk 0:02:59.5]} 11... Nf6 {[%clk 0:03:02.6]} 12. b3 {[%clk 0:02:59.7]} 12...
O-O {[%clk 0:02:54.4]} 13. Bb2 {[%clk 0:02:56]} 13... d5 {[%clk 0:02:43.5]} 14.
cxd5 {[%clk 0:02:56.4]} 14... Nxd5 {[%clk 0:02:43.9]} 15. Nxd5 {[%clk 0:02:53]}
15... Bxd5 {[%clk 0:02:31.2]} 16. O-O {[%clk 0:02:53]} 16... Bc5 {[%clk
0:02:11]} 17. Ne3 {[%clk 0:02:32.3]} 17... Bxe3 {[%clk 0:01:57.5]} 18. fxe3
{[%clk 0:02:31.4]} 18... Qg5 {[%clk 0:01:48.2]} 19. Qe2 {[%clk 0:02:02.9]} 19...
Bxg2 {[%clk 0:01:34.4]} 20. Bc4+ {[%clk 0:01:59.1]} 20... Bd5+ {[%clk
0:01:34.1]} 0-1

[Event "*** Titled Tuesday Blitz"]
[Site "Chess.com"]
[Date "2020.02.04"]
[Round "3"]
[White "AntonSmirnov"]
[Black "Ginzburg_Yakov"]
[Result "1-0"]
[WhiteElo "2912"]
[BlackElo "2523"]
[TimeControl "180+2"]
[EndTime "9:33:56 PST"]
[Termination "AntonSmirnov won by resignation"]

1. e4 {[%clk 0:03:01.9]} 1... c5 {[%clk 0:03:00.1]} 2. Nf3 {[%clk 0:03:03]} 2...
e6 {[%clk 0:03:00.4]} 3. d4 {[%clk 0:03:04.2]} 3... cxd4 {[%clk 0:03:01.6]} 4.
Nxd4 {[%clk 0:03:06.1]} 4... Nc6 {[%clk 0:03:02.6]} 5. Nb5 {[%clk 0:03:07.6]}
5... d6 {[%clk 0:03:03.6]} 6. c4 {[%clk 0:03:08.6]} 6... Nf6 {[%clk 0:03:03.7]}
7. N1c3 {[%clk 0:03:09.5]} 7... a6 {[%clk 0:03:04.7]} 8. Na3 {[%clk 0:03:08.6]}
8... Be7 {[%clk 0:03:04.5]} 9. Be2 {[%clk 0:03:10.1]} 9... O-O {[%clk
0:03:05.4]} 10. O-O {[%clk 0:03:11.7]} 10... b6 {[%clk 0:02:51.4]} 11. Be3
{[%clk 0:03:11.4]} 11... Ne5 {[%clk 0:02:52]} 12. Rc1 {[%clk 0:03:09]} 12... Bb7
{[%clk 0:02:50.6]} 13. f3 {[%clk 0:03:10.2]} 13... d5 {[%clk 0:02:33]} 14. cxd5
{[%clk 0:03:10.8]} 14... exd5 {[%clk 0:02:34.4]} 15. f4 {[%clk 0:03:11.7]} 15...
Ng6 {[%clk 0:02:01.2]} 16. e5 {[%clk 0:03:10.5]} 16... Ne4 {[%clk 0:02:01.4]}
17. Nxe4 {[%clk 0:03:11.2]} 17... Bxa3 {[%clk 0:01:53.9]} 18. bxa3 {[%clk
0:03:07.4]} 18... dxe4 {[%clk 0:01:54.7]} 19. Qb3 {[%clk 0:03:06.3]} 19... b5
{[%clk 0:01:46.9]} 20. Rfd1 {[%clk 0:03:06.1]} 20... Qh4 {[%clk 0:01:38.2]} 21.
g3 {[%clk 0:03:06.8]} 21... Qh3 {[%clk 0:01:38.1]} 22. Rc7 {[%clk 0:03:01.8]}
22... Rab8 {[%clk 0:01:34.1]} 23. Rdd7 {[%clk 0:02:59.1]} 23... Rbd8 {[%clk
0:00:36.2]} 24. Rxd8 {[%clk 0:02:56.5]} 1-0

[Event "*** Titled Tuesday Blitz"]
[Site "Chess.com"]
[Date "2020.02.04"]
[Round "3"]
[White "mortngabriel"]
[Black "FelixJoseYnojosa"]
[Result "0-1"]
[WhiteElo "2406"]
[BlackElo "2666"]
[TimeControl "180+2"]
[EndTime "9:34:18 PST"]
[Termination "FelixJoseYnojosa won by resignation"]

1. e4 {[%clk 0:03:01.9]} 1... c5 {[%clk 0:03:00.3]} 2. Nf3 {[%clk 0:03:01.8]}
2... Nc6 {[%clk 0:03:01.9]} 3. d4 {[%clk 0:03:02]} 3... cxd4 {[%clk 0:03:03.8]}
4. Nxd4 {[%clk 0:03:03.9]} 4... e5 {[%clk 0:03:05.4]} 5. Nb5 {[%clk 0:03:04.8]}
5... d6 {[%clk 0:03:06.1]} 6. c3 {[%clk 0:03:00.1]} 6... Nf6 {[%clk 0:03:04.1]}
7. Bg5 {[%clk 0:02:59.1]} 7... Be7 {[%clk 0:03:04.2]} 8. Bxf6 {[%clk 0:03:00.6]}
8... gxf6 {[%clk 0:03:06.1]} 9. Bd3 {[%clk 0:02:56.7]} 9... a6 {[%clk
0:02:57.3]} 10. N5a3 {[%clk 0:02:57.3]} 10... d5 {[%clk 0:02:58.4]} 11. exd5
{[%clk 0:02:59.2]} 11... Qxd5 {[%clk 0:02:59]} 12. Bf1 {[%clk 0:01:42.7]} 12...
Qc5 {[%clk 0:02:49.5]} 13. Nd2 {[%clk 0:01:38.5]} 13... Be6 {[%clk 0:02:47.2]}
14. Ne4 {[%clk 0:01:34.9]} 14... Qb6 {[%clk 0:02:47.8]} 15. Nd6+ {[%clk
0:01:33.8]} 15... Bxd6 {[%clk 0:02:47.6]} 16. Qxd6 {[%clk 0:01:35.7]} 16... Rd8
{[%clk 0:02:16.1]} 17. Nc4 {[%clk 0:01:24.1]} 17... Bxc4 {[%clk 0:02:15.7]} 18.
Qxf6 {[%clk 0:01:17.4]} 18... Qxb2 {[%clk 0:02:11.3]} 19. Bxc4 {[%clk
0:01:09.6]} 19... Qxa1+ {[%clk 0:02:10.5]} 20. Ke2 {[%clk 0:01:08.7]} 20... Qb2+
{[%clk 0:02:11.4]} 0-1

[Event "*** Titled Tuesday Blitz"]
[Site "Chess.com"]
[Date "2020.02.04"]
[Round "3"]
[White "vlad_Sid"]
[Black "MishkaFighter"]
[Result "1-0"]
[WhiteElo "2696"]
[BlackElo "2424"]
[TimeControl "180+2"]
[EndTime "9:34:38 PST"]
[Termination "vlad_Sid won by resignation"]

1. c4 {[%clk 0:03:01.9]} 1... g6 {[%clk 0:02:55.5]} 2. g3 {[%clk 0:03:02.4]}
2... Bg7 {[%clk 0:02:56.5]} 3. Bg2 {[%clk 0:03:03.3]} 3... c5 {[%clk 0:02:58.1]}
4. Nc3 {[%clk 0:03:04.8]} 4... Nc6 {[%clk 0:02:59.7]} 5. Nf3 {[%clk 0:03:06.3]}
5... e6 {[%clk 0:03:01]} 6. d4 {[%clk 0:03:07.4]} 6... cxd4 {[%clk 0:03:02.9]}
7. Nb5 {[%clk 0:03:07.7]} 7... d5 {[%clk 0:03:04.2]} 8. cxd5 {[%clk 0:03:08.3]}
8... Qa5+ {[%clk 0:03:05.5]} 9. Nd2 {[%clk 0:03:09.7]} 9... Qxb5 {[%clk
0:03:05.9]} 10. dxc6 {[%clk 0:03:11.1]} 10... Ne7 {[%clk 0:03:07.4]} 11. a4
{[%clk 0:03:10.1]} 11... Qa6 {[%clk 0:03:06.8]} 12. b4 {[%clk 0:02:54.9]} 12...
bxc6 {[%clk 0:03:01.3]} 13. b5 {[%clk 0:02:51.5]} 13... Qa5 {[%clk 0:03:00]} 14.
Ba3 {[%clk 0:02:38.9]} 14... Rb8 {[%clk 0:03:01.1]} 15. O-O {[%clk 0:02:26.4]}
15... cxb5 {[%clk 0:02:54.9]} 16. axb5 {[%clk 0:02:21.8]} 16... Qd8 {[%clk
0:02:54]} 17. Qa4 {[%clk 0:02:18.2]} 17... O-O {[%clk 0:02:49.6]} 18. Qxa7
{[%clk 0:02:16.3]} 18... Bd7 {[%clk 0:02:51]} 19. b6 {[%clk 0:02:13.7]} 19...
Re8 {[%clk 0:02:47.7]} 20. Bd6 {[%clk 0:02:04.5]} 20... Nc6 {[%clk 0:01:56.5]}
21. Bxc6 {[%clk 0:02:02.4]} 21... Bxc6 {[%clk 0:01:58.1]} 22. Bxb8 {[%clk
0:02:02]} 22... Qxb8 {[%clk 0:01:50.6]} 23. Qxb8 {[%clk 0:02:03.9]} 23... Rxb8
{[%clk 0:01:52.5]} 24. Rab1 {[%clk 0:02:05.1]} 24... Bd5 {[%clk 0:01:48.5]} 25.
Rfc1 {[%clk 0:02:03]} 25... Bf8 {[%clk 0:01:49.9]} 26. Nc4 {[%clk 0:01:59]}
26... Bc5 {[%clk 0:01:49.5]} 27. b7 {[%clk 0:01:54.6]} 27... d3 {[%clk
0:01:42.2]} 28. exd3 {[%clk 0:01:51.1]} 28... Rxb7 {[%clk 0:01:36.4]} 29. Rxb7
{[%clk 0:01:50.4]} 29... Bxb7 {[%clk 0:01:38.3]} 30. Na5 {[%clk 0:01:51.9]}
30... Ba3 {[%clk 0:01:39.9]} 31. Ra1 {[%clk 0:01:52.4]} 31... Bb2 {[%clk
0:01:40.7]} 32. Rb1 {[%clk 0:01:53.3]} 32... Bc3 {[%clk 0:01:42.3]} 33. Nxb7
{[%clk 0:01:54.5]} 1-0

[Event "*** Titled Tuesday Blitz"]
[Site "Chess.com"]
[Date "2020.02.04"]
[Round "3"]
[White "VALPARAISO37"]
[Black "Andro2"]
[Result "0-1"]
[WhiteElo "2226"]
[BlackElo "2420"]
[TimeControl "180+2"]
[EndTime "9:34:40 PST"]
[Termination "Andro2 won by checkmate"]

1. d4 {[%clk 0:03:00.8]} 1... Nf6 {[%clk 0:02:59.7]} 2. c4 {[%clk 0:03:00.2]}
2... c5 {[%clk 0:02:55.9]} 3. d5 {[%clk 0:02:59.8]} 3... e5 {[%clk 0:02:57]} 4.
Nc3 {[%clk 0:03:00]} 4... d6 {[%clk 0:02:57.8]} 5. e4 {[%clk 0:02:59.5]} 5...
Nbd7 {[%clk 0:02:57.8]} 6. Bd3 {[%clk 0:02:59.8]} 6... Be7 {[%clk 0:02:58.6]} 7.
Nge2 {[%clk 0:02:58]} 7... a6 {[%clk 0:03:00]} 8. a4 {[%clk 0:02:57.3]} 8... O-O
{[%clk 0:02:59.6]} 9. h3 {[%clk 0:02:56.4]} 9... Ne8 {[%clk 0:02:52.1]} 10. O-O
{[%clk 0:02:56.4]} 10... g6 {[%clk 0:02:50.1]} 11. Bh6 {[%clk 0:02:55.8]} 11...
Ng7 {[%clk 0:02:51]} 12. Qd2 {[%clk 0:02:55.2]} 12... Kh8 {[%clk 0:02:48.6]} 13.
g4 {[%clk 0:02:52.7]} 13... Nf6 {[%clk 0:02:49.2]} 14. f3 {[%clk 0:02:51]} 14...
Ng8 {[%clk 0:02:50.2]} 15. Be3 {[%clk 0:02:50.7]} 15... f5 {[%clk 0:02:50.2]}
16. Kh2 {[%clk 0:02:49.9]} 16... Nf6 {[%clk 0:02:44.3]} 17. Rg1 {[%clk
0:02:49.3]} 17... Bd7 {[%clk 0:02:38.2]} 18. Bh6 {[%clk 0:02:49.3]} 18... fxg4
{[%clk 0:02:30.2]} 19. hxg4 {[%clk 0:02:46.1]} 19... Ng8 {[%clk 0:02:30.4]} 20.
Be3 {[%clk 0:02:45.4]} 20... Rxf3 {[%clk 0:02:28.6]} 21. Raf1 {[%clk 0:02:43.5]}
21... Rxf1 {[%clk 0:02:24.9]} 22. Rxf1 {[%clk 0:02:44.4]} 22... Bxg4 {[%clk
0:02:24.9]} 23. Ng3 {[%clk 0:02:45.4]} 23... Qd7 {[%clk 0:02:18.2]} 24. Rf7
{[%clk 0:02:44.9]} 24... Rf8 {[%clk 0:02:16.6]} 25. Qf2 {[%clk 0:02:46]} 25...
Rxf7 {[%clk 0:01:57.7]} 26. Qxf7 {[%clk 0:02:45.4]} 26... Qe8 {[%clk 0:01:50.7]}
27. Qf2 {[%clk 0:02:45.1]} 27... Bd7 {[%clk 0:01:46.9]} 28. b3 {[%clk
0:02:41.4]} 28... Nf6 {[%clk 0:01:47.2]} 29. Kg2 {[%clk 0:02:40.5]} 29... Bc8
{[%clk 0:01:40.3]} 30. Qd2 {[%clk 0:02:39.6]} 30... Qd7 {[%clk 0:01:39.9]} 31.
Bf2 {[%clk 0:02:39.7]} 31... Qh3+ {[%clk 0:01:40.1]} 32. Kg1 {[%clk 0:02:40.5]}
32... Ng4 {[%clk 0:01:40.6]} 33. Nf1 {[%clk 0:02:41]} 33... Nh5 {[%clk 0:01:36]}
34. Be2 {[%clk 0:02:39]} 34... Nf4 {[%clk 0:01:35.5]} 35. Bf3 {[%clk 0:02:13.1]}
35... Qxf3 {[%clk 0:01:29.9]} 36. Bg3 {[%clk 0:02:13.8]} 36... Nh3# {[%clk
0:01:27.7]} 0-1

[Event "*** Titled Tuesday Blitz"]
[Site "Chess.com"]
[Date "2020.02.04"]
[Round "3"]
[White "gena217"]
[Black "Alexander_Donchenko"]
[Result "1-0"]
[WhiteElo "3008"]
[BlackElo "2728"]
[TimeControl "180+2"]
[EndTime "9:34:42 PST"]
[Termination "gena217 won by resignation"]

1. e4 {[%clk 0:03:01.9]} 1... c6 {[%clk 0:03:00.8]} 2. d4 {[%clk 0:03:01.8]}
2... d5 {[%clk 0:03:02.7]} 3. Nc3 {[%clk 0:03:02.3]} 3... dxe4 {[%clk
0:03:04.1]} 4. Nxe4 {[%clk 0:03:04.2]} 4... Nf6 {[%clk 0:03:05]} 5. Nxf6+ {[%clk
0:03:05]} 5... exf6 {[%clk 0:03:06.9]} 6. c3 {[%clk 0:03:05.6]} 6... Bd6 {[%clk
0:03:08.1]} 7. Bd3 {[%clk 0:03:06.7]} 7... O-O {[%clk 0:03:09.4]} 8. Qc2 {[%clk
0:03:08.3]} 8... Re8+ {[%clk 0:03:10.6]} 9. Ne2 {[%clk 0:03:09.8]} 9... h5
{[%clk 0:03:11.9]} 10. O-O {[%clk 0:03:09.6]} 10... Nd7 {[%clk 0:03:12.2]} 11.
Ng3 {[%clk 0:03:09.3]} 11... Qc7 {[%clk 0:03:04.8]} 12. Nxh5 {[%clk 0:02:48.6]}
12... Bxh2+ {[%clk 0:03:00]} 13. Kh1 {[%clk 0:02:49.4]} 13... Bd6 {[%clk
0:02:56.3]} 14. Bh6 {[%clk 0:02:48.9]} 14... gxh6 {[%clk 0:02:44]} 15. Bc4
{[%clk 0:02:49.3]} 15... Re6 {[%clk 0:01:25.3]} 16. Bxe6 {[%clk 0:02:48.4]}
16... fxe6 {[%clk 0:01:27.2]} 17. Qg6+ {[%clk 0:02:44.6]} 17... Kf8 {[%clk
0:01:28.8]} 18. Rae1 {[%clk 0:02:22.6]} 18... Nb6 {[%clk 0:01:04.8]} 19. Qxh6+
{[%clk 0:02:19.5]} 19... Ke8 {[%clk 0:00:59]} 20. Qh8+ {[%clk 0:02:08.4]} 20...
Bf8 {[%clk 0:00:45.6]} 21. Nxf6+ {[%clk 0:02:07.2]} 21... Kf7 {[%clk 0:00:28.6]}
22. Qh7+ {[%clk 0:02:08.1]} 22... Bg7 {[%clk 0:00:30]} 23. Qxg7+ {[%clk
0:02:09.2]} 23... Kxg7 {[%clk 0:00:31.9]} 24. Ne8+ {[%clk 0:02:10.9]} 24... Kf7
{[%clk 0:00:33.6]} 25. Nxc7 {[%clk 0:02:12.8]} 25... Bd7 {[%clk 0:00:35.2]} 26.
Nxa8 {[%clk 0:02:11.9]} 1-0

[Event "*** Titled Tuesday Blitz"]
[Site "Chess.com"]
[Date "2020.02.04"]
[Round "3"]
[White "CrgKrishna"]
[Black "Saitama_Hero"]
[Result "1-0"]
[WhiteElo "2478"]
[BlackElo "2270"]
[TimeControl "180+2"]
[EndTime "9:35:46 PST"]
[Termination "CrgKrishna won by resignation"]

1. d4 {[%clk 0:03:00.8]} 1... Nf6 {[%clk 0:03:00.1]} 2. Nf3 {[%clk 0:03:01.6]}
2... g6 {[%clk 0:02:59.8]} 3. Nc3 {[%clk 0:03:02.5]} 3... Bg7 {[%clk 0:03:01.7]}
4. Bf4 {[%clk 0:03:01.6]} 4... O-O {[%clk 0:03:02]} 5. e4 {[%clk 0:03:02.6]}
5... d5 {[%clk 0:03:01.9]} 6. Bd3 {[%clk 0:03:01.8]} 6... dxe4 {[%clk
0:03:01.4]} 7. Nxe4 {[%clk 0:03:00.4]} 7... Nd5 {[%clk 0:03:01.5]} 8. Bd2 {[%clk
0:03:00.2]} 8... Nc6 {[%clk 0:02:58.4]} 9. c3 {[%clk 0:03:00.9]} 9... Bg4 {[%clk
0:02:53.9]} 10. h3 {[%clk 0:03:00.6]} 10... Bxf3 {[%clk 0:02:54]} 11. Qxf3
{[%clk 0:03:02.5]} 11... e5 {[%clk 0:02:54.8]} 12. Bc4 {[%clk 0:02:40.1]} 12...
Kh8 {[%clk 0:02:43.9]} 13. Nc5 {[%clk 0:02:38.5]} 13... Nb6 {[%clk 0:02:41.9]}
14. Nxb7 {[%clk 0:02:38.1]} 14... Qe8 {[%clk 0:01:56.3]} 15. Bb5 {[%clk
0:02:38.2]} 15... exd4+ {[%clk 0:01:56.1]} 16. Kf1 {[%clk 0:02:39.2]} 16... Ne5
{[%clk 0:01:56.2]} 17. Qe2 {[%clk 0:02:10]} 17... c6 {[%clk 0:01:01.3]} 18. cxd4
{[%clk 0:02:10.2]} 18... cxb5 {[%clk 0:01:01.7]} 19. Nd6 {[%clk 0:02:02.4]}
19... Qe7 {[%clk 0:00:50.9]} 20. dxe5 {[%clk 0:02:02.7]} 20... a6 {[%clk
0:00:44.7]} 21. Re1 {[%clk 0:01:50.3]} 21... Rad8 {[%clk 0:00:40.2]} 22. Bb4
{[%clk 0:01:49.4]} 22... Nd5 {[%clk 0:00:37]} 23. Bc5 {[%clk 0:01:48.7]} 23...
Qc7 {[%clk 0:00:35.6]} 24. b4 {[%clk 0:01:49.5]} 24... Nf4 {[%clk 0:00:30.1]}
25. Qe4 {[%clk 0:01:49.7]} 25... Ne6 {[%clk 0:00:31.2]} 26. Be3 {[%clk
0:01:40.2]} 26... Bxe5 {[%clk 0:00:18.7]} 27. Qxe5+ {[%clk 0:01:40.4]} 1-0

[Event "*** Titled Tuesday Blitz"]
[Site "Chess.com"]
[Date "2020.02.04"]
[Round "3"]
[White "Abund"]
[Black "cottage_cheese"]
[Result "1-0"]
[WhiteElo "2758"]
[BlackElo "2415"]
[TimeControl "180+2"]
[EndTime "9:35:54 PST"]
[Termination "Abund won on time"]

1. Nf3 {[%clk 0:03:01.9]} 1... c5 {[%clk 0:02:58.4]} 2. c4 {[%clk 0:03:02.8]}
2... Nc6 {[%clk 0:02:57]} 3. Nc3 {[%clk 0:03:03.9]} 3... g6 {[%clk 0:02:47]} 4.
e3 {[%clk 0:03:04.6]} 4... Bg7 {[%clk 0:02:34.6]} 5. d4 {[%clk 0:03:05.7]} 5...
d6 {[%clk 0:02:26.7]} 6. Be2 {[%clk 0:02:51.2]} 6... e6 {[%clk 0:02:25.3]} 7.
dxc5 {[%clk 0:02:33.5]} 7... Bxc3+ {[%clk 0:02:02.4]} 8. bxc3 {[%clk 0:02:32.6]}
8... dxc5 {[%clk 0:02:04.3]} 9. Qc2 {[%clk 0:02:29.3]} 9... Nge7 {[%clk
0:01:37]} 10. h4 {[%clk 0:02:28.2]} 10... e5 {[%clk 0:01:25.2]} 11. h5 {[%clk
0:02:22.9]} 11... Bf5 {[%clk 0:00:55.9]} 12. e4 {[%clk 0:02:23.3]} 12... Bg4
{[%clk 0:00:56.3]} 13. hxg6 {[%clk 0:02:22.4]} 13... Nxg6 {[%clk 0:00:44.5]} 14.
Bg5 {[%clk 0:01:50.7]} 14... f6 {[%clk 0:00:40.2]} 15. Rd1 {[%clk 0:01:36.7]}
15... Qe7 {[%clk 0:00:39.9]} 16. Nh4 {[%clk 0:01:19.9]} 16... Bxe2 {[%clk
0:00:11.4]} 17. Qxe2 {[%clk 0:01:13.6]} 17... Rg8 {[%clk 0:00:07.4]} 18. Nf5
{[%clk 0:01:13.3]} 18... Qe6 {[%clk 0:00:04.8]} 19. Rd6 {[%clk 0:01:04.7]} 1-0

[Event "*** Titled Tuesday Blitz"]
[Site "Chess.com"]
[Date "2020.02.04"]
[Round "3"]
[White "mitrabhaa"]
[Black "Colombiano07"]
[Result "0-1"]
[WhiteElo "2582"]
[BlackElo "2269"]
[TimeControl "180+2"]
[EndTime "9:35:57 PST"]
[Termination "Colombiano07 won by resignation"]

1. d4 {[%clk 0:03:01.9]} 1... Nf6 {[%clk 0:03:00.6]} 2. c4 {[%clk 0:02:59.8]}
2... d6 {[%clk 0:03:01.5]} 3. Nc3 {[%clk 0:03:00.3]} 3... Nbd7 {[%clk
0:03:02.9]} 4. g3 {[%clk 0:03:00.6]} 4... e5 {[%clk 0:03:03.3]} 5. Nf3 {[%clk
0:03:02.2]} 5... Be7 {[%clk 0:03:04.3]} 6. Bg2 {[%clk 0:03:03.8]} 6... O-O
{[%clk 0:03:05.1]} 7. O-O {[%clk 0:03:05.3]} 7... c6 {[%clk 0:03:06.2]} 8. e4
{[%clk 0:03:06.5]} 8... a6 {[%clk 0:03:04.5]} 9. a4 {[%clk 0:03:05.2]} 9... a5
{[%clk 0:03:03]} 10. h3 {[%clk 0:03:05.2]} 10... exd4 {[%clk 0:02:58.8]} 11.
Nxd4 {[%clk 0:03:04.8]} 11... Nc5 {[%clk 0:02:59.5]} 12. Be3 {[%clk 0:03:03.6]}
12... Re8 {[%clk 0:02:59.6]} 13. Qc2 {[%clk 0:03:04.5]} 13... Bf8 {[%clk
0:03:00.1]} 14. Rad1 {[%clk 0:03:03.6]} 14... Qb6 {[%clk 0:02:54.1]} 15. Rfe1
{[%clk 0:03:00.1]} 15... g6 {[%clk 0:02:45.1]} 16. Kh2 {[%clk 0:02:55.1]} 16...
Bg7 {[%clk 0:02:41.8]} 17. Nde2 {[%clk 0:02:55.7]} 17... Qb4 {[%clk 0:02:29.3]}
18. Rxd6 {[%clk 0:02:35.1]} 18... Ncxe4 {[%clk 0:02:21.3]} 19. Rdd1 {[%clk
0:01:58.7]} 19... Nxc3 {[%clk 0:01:45.4]} 20. Qxc3 {[%clk 0:01:52.1]} 20... Ng4+
{[%clk 0:01:40.5]} 21. hxg4 {[%clk 0:01:49.1]} 21... Bxc3 {[%clk 0:01:40.6]} 22.
Nxc3 {[%clk 0:01:46]} 22... Bxg4 {[%clk 0:01:34.3]} 23. f3 {[%clk 0:01:37.3]}
23... Bxf3 {[%clk 0:01:29.6]} 24. Bxf3 {[%clk 0:01:25.2]} 24... Qxb2+ {[%clk
0:01:30.3]} 25. Rd2 {[%clk 0:00:49.6]} 25... Qxc3 {[%clk 0:01:28.8]} 26. Rde2
{[%clk 0:00:50.8]} 26... Qxc4 {[%clk 0:01:20.6]} 27. Rf1 {[%clk 0:00:47.3]}
27... Rxe3 {[%clk 0:01:14.5]} 0-1

[Event "*** Titled Tuesday Blitz"]
[Site "Chess.com"]
[Date "2020.02.04"]
[Round "3"]
[White "HarryCun"]
[Black "arminmusovic"]
[Result "0-1"]
[WhiteElo "2120"]
[BlackElo "2561"]
[TimeControl "180+2"]
[EndTime "9:36:29 PST"]
[Termination "arminmusovic won by resignation"]

1. Nf3 {[%clk 0:03:01.9]} 1... a6 {[%clk 0:03:00.7]} 2. g3 {[%clk 0:03:02.7]}
2... e6 {[%clk 0:03:02.2]} 3. Bg2 {[%clk 0:03:04.1]} 3... d5 {[%clk 0:03:03.7]}
4. O-O {[%clk 0:03:05.7]} 4... Nf6 {[%clk 0:03:05.2]} 5. d3 {[%clk 0:03:07.1]}
5... c5 {[%clk 0:03:05.5]} 6. c4 {[%clk 0:03:07.1]} 6... Nc6 {[%clk 0:03:04.3]}
7. d4 {[%clk 0:03:07.7]} 7... Be7 {[%clk 0:03:01]} 8. Nc3 {[%clk 0:03:07.3]}
8... h6 {[%clk 0:03:00.9]} 9. cxd5 {[%clk 0:03:05.7]} 9... exd5 {[%clk
0:03:02.4]} 10. dxc5 {[%clk 0:03:06.2]} 10... Bxc5 {[%clk 0:03:04.3]} 11. e3
{[%clk 0:02:54.4]} 11... O-O {[%clk 0:03:05.3]} 12. Ne2 {[%clk 0:02:50.2]} 12...
Re8 {[%clk 0:03:01.2]} 13. Ned4 {[%clk 0:02:50.5]} 13... Bg4 {[%clk 0:02:56.8]}
14. Ne2 {[%clk 0:02:37.5]} 14... Ne4 {[%clk 0:02:51.4]} 15. h3 {[%clk
0:02:36.9]} 15... Bf5 {[%clk 0:02:43.5]} 16. Nfd4 {[%clk 0:02:33]} 16... Bh7
{[%clk 0:02:41.4]} 17. a3 {[%clk 0:02:26.3]} 17... Qf6 {[%clk 0:02:28.5]} 18. b4
{[%clk 0:02:15.9]} 18... Nxd4 {[%clk 0:02:26]} 19. Nxd4 {[%clk 0:02:17.6]} 19...
Bxd4 {[%clk 0:02:25.5]} 20. Qxd4 {[%clk 0:02:11.7]} 20... Qxd4 {[%clk
0:02:22.5]} 21. exd4 {[%clk 0:02:12.6]} 21... Nc3 {[%clk 0:02:10.2]} 22. Bd2
{[%clk 0:01:20.3]} 22... Ne2+ {[%clk 0:02:07.8]} 23. Kh2 {[%clk 0:01:11.3]}
23... Nxd4 {[%clk 0:01:53.3]} 24. Bxd5 {[%clk 0:01:09.9]} 24... Be4 {[%clk
0:01:55]} 25. Be3 {[%clk 0:01:03.8]} 25... Nf3+ {[%clk 0:01:53.8]} 26. Kg2
{[%clk 0:01:02.1]} 26... Bxd5 {[%clk 0:01:55.7]} 27. Rfd1 {[%clk 0:01:03.3]}
27... Bc6 {[%clk 0:01:50.6]} 28. Rd6 {[%clk 0:01:01.4]} 28... Nh4+ {[%clk
0:01:48.5]} 29. Kf1 {[%clk 0:00:56.1]} 29... Bg2+ {[%clk 0:01:37.8]} 30. Kg1
{[%clk 0:00:56.5]} 30... Nf5 {[%clk 0:01:39.2]} 31. Rd7 {[%clk 0:00:40.7]} 31...
Nxe3 {[%clk 0:01:38.1]} 32. fxe3 {[%clk 0:00:41]} 32... Bxh3 {[%clk 0:01:36.9]}
33. Rxb7 {[%clk 0:00:40.5]} 33... Rxe3 {[%clk 0:01:38.4]} 34. Rc1 {[%clk
0:00:41.1]} 34... Rxg3+ {[%clk 0:01:37.1]} 35. Kh2 {[%clk 0:00:41.8]} 35... Rxa3
{[%clk 0:01:39]} 36. Rcc7 {[%clk 0:00:42.1]} 36... Be6 {[%clk 0:01:40.1]} 37.
Kg2 {[%clk 0:00:38.5]} 37... Rd8 {[%clk 0:01:40.9]} 38. Kf2 {[%clk 0:00:38.6]}
38... Rd2+ {[%clk 0:01:40]} 39. Ke1 {[%clk 0:00:38]} 39... Rh2 {[%clk
0:01:41.3]} 40. Rc1 {[%clk 0:00:35.5]} 40... Rh1+ {[%clk 0:01:42.1]} 41. Kd2
{[%clk 0:00:37.4]} 41... Ra2+ {[%clk 0:01:43.3]} 0-1